fUST/lending_fUST_20250914
["ID","MTS","AMOUNT","RATE_DAILY","PERIOD"]
[385445018,1757855378480,-1283.640193,0.00020972,2]
[385445019,1757855378508,-2000.0,0.00021148,2]
[385445020,1757855378539,-1247.60668096,0.00021149,2]
[385445021,1757855378656,-937.51625208,0.00021149,2]
[385445022,1757855378683,-4010.23597348,0.00021382,2]
[385445023,1757855378799,-300.0,0.00021597,2]
[385445024,1757855378827,-4400.01,0.00021598,2]
[385445025,1757855388512,-5000.0,0.00021382,2]
[385445026,1757855388661,-599.99,0.00021598,2]
[385445027,1757855388691,-168.0,0.00021675,2]
[385445028,1757855388719,-1208.80367832,0.00021716,2]
[385445029,1757855388750,-531.23217266,0.00021772,2]
[385445030,1757855388780,-847.27885267,0.00021772,2]
[385445031,1757855388809,-217.77739939,0.00021772,2]
[385445032,1757855388838,-160.0,0.00021772,2]
[385445033,1757855388866,-233.1999649,0.00021772,2]
[385445034,1757855388895,-160.0,0.00021772,2]
[385445035,1757855388922,-160.0,0.00021772,2]
[385445036,1757855388949,-151.0,0.000218,3]
[385445037,1757855388978,-282.45586412,0.00021807,3]
[385445038,1757855398547,-560.53413588,0.00021807,3]
[385445039,1757855398579,-181.08,0.00021807,3]
[385445040,1757855398608,-1144.2725315,0.0002181,2]
[385445041,1757855398636,-500.0,0.00021816,2]
[385445042,1757855398665,-373.36744966,0.00021816,2]
[385445043,1757855398693,-500.0,0.00021816,2]
[385445044,1757855398721,-500.0,0.00021816,2]
[385445045,1757855398750,-500.0,0.00021816,2]
[385445046,1757855398779,-500.0,0.00021816,2]
[385445047,1757855398813,-56.50176592,0.00021816,2]
[385445048,1757855399016,-217.93123765,0.00021816,2]
[385445049,1757855408556,-543.28,0.00021807,3]
[385445050,1757855408588,-300.0,0.00021815,2]
[385445051,1757855408757,-8313.45,0.00021816,2]
[385445052,1757855418562,-5000.0,0.00021598,2]
[385445053,1757855418610,-0.01,0.00021816,2]
[385445054,1757855418680,-10000.01,0.00021816,2]
[385445055,1757855418813,-10000.01,0.00021816,2]
[385445056,1757855418928,-10000.01,0.00021816,2]
[385445057,1757855419076,-10000.01,0.00021816,2]
[385445058,1757855419212,-1686.5,0.00021816,2]
[385445059,1757855419243,-150.56699643,0.00021816,2]
[385445060,1757855419273,-500.0,0.00021816,2]
[385445061,1757855419303,-500.0,0.00021816,2]
[385445062,1757855419332,-500.0,0.00021816,2]
[385445063,1757855419362,-613.903531,0.00021816,2]
[385445064,1757855419390,-500.0,0.00021816,2]
[385445065,1757855419419,-200.94877199,0.00021816,2]
[385445066,1757855419449,-196.17140116,0.00021816,2]
[385445067,1757855419582,-303.82859884,0.00021816,2]
[385445124,1757855432493,-500.0,0.00021816,2]
[385445126,1757855432503,-500.0,0.00021816,2]
[385445128,1757855432512,-179.57226996,0.00021816,2]
[385445130,1757855432522,-500.0,0.00021816,2]
[385445132,1757855432531,-457.68597182,0.00021816,2]
[385445134,1757855432540,-500.0,0.00021816,2]
[385445136,1757855432549,-500.0,0.00021816,2]
[385445137,1757855432558,-500.0,0.00021816,2]
[385445139,1757855432568,-372.6116474,0.00021816,2]
[385445140,1757855432577,-500.0,0.00021816,2]
[385445141,1757855432586,-489.62351382,0.00021816,2]
[385445142,1757855432597,-10.37648618,0.00021816,2]
[385445143,1757855432606,-500.0,0.00021816,2]
[385445145,1757855432616,-500.0,0.00021816,2]
[385445147,1757855432625,-500.0,0.00021816,2]
[385445149,1757855432634,-500.0,0.00021816,2]
[385445152,1757855432643,-500.0,0.00021816,2]
[385445154,1757855432652,-500.0,0.00021816,2]
[385445155,1757855432661,-500.0,0.00021816,2]
[385445156,1757855432670,-500.0,0.00021816,2]
[385445157,1757855432679,-245.36441602,0.00021816,2]
[385445158,1757855432688,-500.0,0.00021816,2]
[385445159,1757855432697,-500.0,0.00021816,2]
[385445160,1757855432707,-500.0,0.00021816,2]
[385445161,1757855432716,-500.0,0.00021816,2]
[385445162,1757855432726,-500.0,0.00021816,2]
[385445163,1757855432735,-500.0,0.00021816,2]
[385445164,1757855432744,-853.65,0.00021816,2]
[385445165,1757855432752,-360524.87217096,0.00021817,2]
[385445166,1757855432762,-28389.43940601,0.00021817,3]
[385445167,1757855432771,-500.0,0.00021817,2]
[385445168,1757855432780,-422.86166853,0.00021817,2]
[385445169,1757855432789,-574.37837533,0.00021817,2]
[385445170,1757855432799,-604.46369914,0.00021817,2]
[385445171,1757855432808,-168.0,0.00021866,2]
[385445172,1757855432818,-629.10698145,0.00021873,2]
[385445173,1757855432827,-500.0,0.00021873,2]
[385445174,1757855432836,-500.0,0.00021873,2]
[385445175,1757855432845,-500.76366316,0.00021873,2]
[385445176,1757855432853,-500.65184826,0.00021873,2]
[385445177,1757855432864,-500.0,0.00021873,2]
[385445178,1757855432873,-500.0,0.00021873,2]
[385445179,1757855432883,-176.62907246,0.00021873,2]
[385445180,1757855432895,-323.37092754,0.00021873,2]
[385445181,1757855432904,-500.0,0.00021873,2]
[385445182,1757855432913,-500.01266162,0.00021873,2]
[385445183,1757855432922,-500.0,0.00021873,2]
[385445184,1757855432932,-500.0,0.00021873,2]
[385445185,1757855432941,-482.24433182,0.00021873,2]
[385445186,1757855432950,-500.0,0.00021873,2]
[385445187,1757855432964,-213.17021743,0.00021873,2]
[385445188,1757855432973,-500.0,0.00021873,2]
[385445189,1757855432982,-500.83706707,0.00021873,2]
[385445190,1757855432991,-502.01026714,0.00021873,2]
[385445191,1757855433001,-500.0,0.00021873,2]
[385445192,1757855433012,-500.0,0.00021873,2]
[385445193,1757855433022,-500.0,0.00021873,2]
[385445194,1757855433031,-500.0,0.00021873,2]
[385445195,1757855433042,-523.67874244,0.00021873,2]
[385445196,1757855433052,-500.0,0.00021873,2]
[385445197,1757855433062,-500.0,0.00021873,2]
[385445198,1757855433072,-500.0,0.00021873,2]
[385445199,1757855433081,-500.0,0.00021873,2]
[385445200,1757855433090,-500.0,0.00021873,2]
[385445201,1757855433100,-500.0,0.00021873,2]
[385445202,1757855433109,-500.0,0.00021873,2]
[385445203,1757855433118,-500.0,0.00021873,2]
[385445204,1757855433128,-500.85520832,0.00021873,2]
[385445205,1757855433137,-500.75798661,0.00021873,2]
[385445206,1757855433146,-500.0,0.00021873,2]
[385445207,1757855433155,-500.0,0.00021873,2]
[385445208,1757855433164,-502.6238293,0.00021873,2]
[385445209,1757855433173,-323.03609201,0.00021873,2]
[385445210,1757855433182,-500.0,0.00021873,2]
[385445211,1757855433191,-228.29320842,0.00021873,2]
[385445212,1757855433200,-519.41544812,0.00021873,2]
[385445213,1757855433211,-260.22484996,0.00021873,2]
[385445214,1757855433221,-500.0,0.00021873,2]
[385445215,1757855433230,-501.74410794,0.00021873,2]
[385445216,1757855433239,-500.0,0.00021873,2]
[385445217,1757855433248,-340.91074575,0.00021873,2]
[385445218,1757855433257,-500.0,0.00021873,2]
[385445219,1757855433267,-214.64016926,0.00021873,2]
[385445220,1757855433279,-157.0,0.00021873,2]
[385445221,1757855433288,-168.0,0.00021881,2]
[385445222,1757855433298,-600.0,0.000219,2]
[385445223,1757855433307,-151.0,0.000219,3]
[385445224,1757855433317,-151.0,0.000219,4]
[385445225,1757855433326,-151.0,0.000219,4]
[385445226,1757855433335,-353.49,0.000219,7]
[385445227,1757855433345,-168.0,0.00021917,2]
[385445228,1757855433354,-484.0511462,0.00021917,2]
[385445229,1757855433364,-480.0,0.00021917,3]
[385445230,1757855433373,-484.52279303,0.00021917,2]
[385445231,1757855433382,-480.0,0.00021917,2]
[385445232,1757855433392,-480.0,0.00021917,2]
[385445233,1757855433404,-481.95095365,0.00021917,2]
[385445234,1757855433414,-480.0,0.00021917,2]
[385445235,1757855433423,-480.0,0.00021917,2]
[385445236,1757855433432,-480.0,0.00021917,2]
[385445237,1757855433441,-480.5819029,0.00021917,2]
[385445238,1757855433451,-480.0,0.00021917,2]
[385445239,1757855433460,-480.0,0.00021917,2]
[385445240,1757855433469,-480.0,0.00021917,2]
[385445241,1757855433479,-480.0,0.00021917,2]
[385445242,1757855433488,-480.0,0.00021917,2]
[385445243,1757855433497,-480.0,0.00021917,2]
[385445244,1757855433507,-480.0,0.00021917,2]
[385445245,1757855433516,-480.0,0.00021917,2]
[385445246,1757855433527,-480.0,0.00021917,2]
[385445247,1757855433536,-480.0,0.00021917,2]
[385445248,1757855433545,-480.0,0.00021917,2]
[385445249,1757855433554,-480.0,0.00021917,2]
[385445250,1757855433564,-480.0,0.00021917,2]
[385445251,1757855433573,-742.53,0.00021917,2]
[385445252,1757855433583,-480.0,0.00021917,2]
[385445253,1757855433593,-480.0,0.00021917,2]
[385445254,1757855433602,-480.0,0.00021917,2]
[385445255,1757855433611,-480.0,0.00021917,2]
[385445256,1757855433621,-480.0,0.00021917,2]
[385445257,1757855433630,-480.0,0.00021917,2]
[385445258,1757855433639,-915.3,0.00021917,2]
[385445259,1757855433648,-480.0,0.00021917,2]
[385445260,1757855433658,-480.0,0.00021917,2]
[385445261,1757855433667,-480.0,0.00021917,2]
[385445262,1757855433676,-480.0,0.00021917,2]
[385445263,1757855433685,-481.64836104,0.00021917,2]
[385445264,1757855433695,-481.18306681,0.00021917,2]
[385445265,1757855433704,-480.0,0.00021917,2]
[385445266,1757855433712,-481.2657747,0.00021917,2]
[385445267,1757855433721,-480.0,0.00021917,2]
[385445268,1757855433731,-483.86933658,0.00021917,2]
[385445269,1757855433741,-480.0,0.00021917,2]
[385445270,1757855433750,-500.0,0.00021917,2]
[385445271,1757855433759,-481.96735111,0.00021917,2]
[385445272,1757855433768,-480.0,0.00021917,2]
[385445273,1757855433777,-480.0,0.00021917,2]
[385445274,1757855433937,-480.0,0.00021917,2]
[385445275,1757855433946,-481.74781042,0.00021917,2]
[385445276,1757855433956,-480.0,0.00021917,2]
[385445277,1757855433965,-480.0,0.00021917,2]
[385445278,1757855433975,-480.0,0.00021917,2]
[385445279,1757855433985,-432.34628866,0.00021917,2]
[385445280,1757855433995,-480.0,0.00021917,2]
[385445281,1757855434004,-480.0,0.00021917,2]
[385445282,1757855434014,-480.0,0.00021917,2]
[385445283,1757855434023,-482.50551659,0.00021917,2]
[385445284,1757855434033,-480.0,0.00021917,2]
[385445285,1757855434043,-410.14189582,0.00021917,2]
[385445286,1757855434052,-480.0,0.00021917,2]
[385445287,1757855434061,-234.39461144,0.00021917,2]
[385445288,1757855434071,-484.16294713,0.00021917,2]
[385445289,1757855434080,-480.0,0.00021917,2]
[385445290,1757855434090,-480.0,0.00021917,2]
[385445291,1757855434099,-480.0,0.00021917,2]
[385445292,1757855434108,-480.0,0.00021917,2]
[385445293,1757855434118,-480.0,0.00021917,2]
[385445294,1757855434127,-480.0,0.00021917,2]
[385445295,1757855434136,-480.0,0.00021917,2]
[385445296,1757855434145,-481.36132492,0.00021917,2]
[385445297,1757855434154,-480.0,0.00021917,2]
[385445298,1757855434163,-480.0,0.00021917,2]
[385445299,1757855434172,-480.0,0.00021917,2]
[385445300,1757855434181,-426.29197751,0.00021917,2]
[385445301,1757855434191,-480.0,0.00021917,2]
[385445302,1757855434200,-480.0,0.00021917,2]
[385445303,1757855434209,-480.0,0.00021917,2]
[385445304,1757855434219,-480.0,0.00021917,2]
[385445305,1757855434228,-480.0,0.00021917,2]
[385445306,1757855434237,-1014.67508106,0.00021917,2]
[385445307,1757855434247,-480.0,0.00021917,2]
[385445308,1757855434257,-480.0,0.00021917,2]
[385445309,1757855434267,-480.0,0.00021917,2]
[385445310,1757855434277,-480.0,0.00021917,2]
[385445311,1757855434286,-71.82862322,0.00021917,2]
[385445340,1757855438127,-408.17137678,0.00021917,2]
[385445341,1757855438136,-396.3320788,0.00021917,2]
[385445342,1757855438146,-480.0,0.00021917,2]
[385445343,1757855438156,-480.0,0.00021917,2]
[385445344,1757855438165,-480.0,0.00021917,2]
[385445345,1757855438174,-480.0,0.00021917,2]
[385445346,1757855438183,-480.0,0.00021917,2]
[385445347,1757855438192,-484.04247386,0.00021917,2]
[385445348,1757855438201,-480.0,0.00021917,2]
[385445349,1757855438211,-480.0,0.00021917,2]
[385445350,1757855438220,-480.0,0.00021917,2]
[385445351,1757855438229,-480.0,0.00021917,2]
[385445352,1757855438238,-480.0,0.00021917,2]
[385445353,1757855438248,-482.39378484,0.00021917,2]
[385445354,1757855438257,-480.0,0.00021917,2]
[385445355,1757855438266,-484.93142865,0.00021917,2]
[385445356,1757855438276,-480.0,0.00021917,2]
[385445357,1757855438285,-232.51069455,0.00021917,2]
[385445358,1757855438295,-480.0,0.00021917,2]
[385445359,1757855438304,-480.0,0.00021917,2]
[385445360,1757855438313,-482.50352451,0.00021917,2]
[385445361,1757855438323,-480.0,0.00021917,2]
[385445362,1757855438333,-480.0,0.00021917,2]
[385445363,1757855438342,-480.0,0.00021917,2]
[385445364,1757855438351,-480.0,0.00021917,2]
[385445365,1757855438360,-480.0,0.00021917,2]
[385445366,1757855438370,-480.0,0.00021917,2]
[385445367,1757855438379,-202.34903723,0.00021917,2]
[385445368,1757855438389,-480.0,0.00021917,2]
[385445369,1757855438398,-480.0,0.00021917,2]
[385445370,1757855438407,-480.0,0.00021917,2]
[385445371,1757855438416,-480.0,0.00021917,2]
[385445372,1757855438426,-482.12893226,0.00021917,2]
[385445373,1757855438435,-480.0,0.00021917,2]
[385445374,1757855438444,-480.0,0.00021917,2]
[385445375,1757855438453,-480.35614664,0.00021917,2]
[385445376,1757855438463,-480.0,0.00021917,2]
[385445377,1757855438472,-480.0,0.00021917,2]
[385445378,1757855438483,-480.0,0.00021917,2]
[385445379,1757855438492,-505.67,0.00021917,2]
[385445380,1757855438502,-482.90839945,0.00021917,2]
[385445381,1757855438511,-480.0,0.00021917,2]
[385445382,1757855438520,-480.0,0.00021917,2]
[385445383,1757855438530,-480.0,0.00021917,2]
[385445384,1757855438540,-480.0,0.00021917,2]
[385445385,1757855438549,-1063.26,0.00021917,2]
[385445386,1757855438558,-491.68037537,0.00021917,2]
[385445387,1757855438567,-436.18133661,0.00021917,2]
[385445388,1757855438577,-481.86093502,0.00021917,2]
[385445389,1757855438586,-483.30718389,0.00021917,2]
[385445390,1757855438595,-480.0,0.00021917,2]
[385445391,1757855438605,-240.50131448,0.00021917,2]
[385445392,1757855438614,-480.00000001,0.00021917,2]
[385445393,1757855438623,-480.0,0.00021917,2]
[385445394,1757855438633,-396.11649269,0.00021917,2]
[385445395,1757855438642,-480.0,0.00021917,2]
[385445396,1757855438651,-480.0,0.00021917,2]
[385445397,1757855438660,-480.0,0.00021917,2]
[385445398,1757855438670,-483.45549796,0.00021917,2]
[385445399,1757855438679,-480.0,0.00021917,2]
[385445400,1757855438688,-265.60688158,0.00021917,2]
[385445401,1757855438697,-481.44405554,0.00021917,2]
[385445402,1757855438707,-875.97,0.00021917,2]
[385445403,1757855438716,-480.0,0.00021917,2]
[385445404,1757855438725,-480.0,0.00021917,2]
[385445405,1757855438735,-486.67964897,0.00021917,2]
[385445406,1757855438744,-480.0,0.00021917,2]
[385445407,1757855438753,-480.0,0.00021917,2]
[385445408,1757855438763,-480.0,0.00021917,2]
[385445409,1757855438773,-481.18504876,0.00021917,2]
[385445410,1757855438782,-782.33,0.00021917,2]
[385445411,1757855438791,-349.86604139,0.00021917,2]
[385445412,1757855438800,-480.0,0.00021917,2]
[385445413,1757855438810,-480.0,0.00021917,2]
[385445414,1757855438819,-480.0,0.00021917,2]
[385445415,1757855438828,-480.0,0.00021917,2]
[385445416,1757855438837,-480.0,0.00021917,2]
[385445417,1757855438846,-480.0,0.00021917,2]
[385445418,1757855438855,-480.0,0.00021917,2]
[385445419,1757855438865,-480.0,0.00021917,2]
[385445420,1757855438874,-482.54017041,0.00021917,2]
[385445421,1757855438884,-479.37184423,0.00021917,2]
[385445422,1757855438894,-480.0,0.00021917,2]
[385445423,1757855438904,-238.44633353,0.00021917,2]
[385445424,1757855438914,-480.0,0.00021917,2]
[385445425,1757855438923,-480.0,0.00021917,2]
[385445426,1757855438933,-480.0,0.00021917,2]
[385445427,1757855438943,-480.0,0.00021917,2]
[385445428,1757855438952,-480.0,0.00021917,2]
[385445429,1757855438967,-502.1,0.00021917,2]
[385445430,1757855438977,-480.0,0.00021917,2]
[385445431,1757855438987,-1023.19,0.00021917,2]
[385445432,1757855438997,-2120.15,0.00021917,2]
[385445433,1757855439007,-480.0,0.00021917,2]
[385445434,1757855439016,-480.0,0.00021917,2]
[385445435,1757855439028,-480.0,0.00021917,2]
[385445436,1757855439039,-480.0,0.00021917,2]
[385445437,1757855439048,-821.42,0.00021917,2]
[385445438,1757855439058,-480.0,0.00021917,2]
[385445439,1757855439067,-485.94190419,0.00021917,2]
[385445440,1757855439076,-480.0,0.00021917,2]
[385445441,1757855439085,-480.0,0.00021917,2]
[385445442,1757855439094,-714.63,0.00021917,2]
[385445443,1757855439103,-487.38707966,0.00021917,2]
[385445444,1757855439112,-485.39048223,0.00021917,2]
[385445445,1757855439122,-480.0,0.00021917,2]
[385445446,1757855439131,-480.0,0.00021917,2]
[385445447,1757855439140,-480.0,0.00021917,2]
[385445448,1757855439149,-480.0,0.00021917,2]
[385445449,1757855439159,-480.0,0.00021917,2]
[385445450,1757855439168,-480.0,0.00021917,2]
[385445451,1757855439177,-480.0,0.00021917,2]
[385445452,1757855439187,-500.0,0.00021917,2]
[385445453,1757855439196,-480.0,0.00021917,2]
[385445454,1757855439206,-480.0,0.00021917,2]
[385445455,1757855439215,-507.3,0.00021917,2]
[385445456,1757855439224,-480.0,0.00021917,2]
[385445457,1757855439234,-480.0,0.00021917,2]
[385445458,1757855439243,-480.0,0.00021917,2]
[385445459,1757855439252,-480.0,0.00021917,2]
[385445460,1757855439262,-480.0,0.00021917,2]
[385445461,1757855439271,-480.0,0.00021917,2]
[385445462,1757855439281,-480.0,0.00021917,2]
[385445463,1757855439291,-921.7,0.00021917,2]
[385445464,1757855439300,-480.0,0.00021917,2]
[385445465,1757855439309,-480.0,0.00021917,2]
[385445466,1757855439319,-480.0,0.00021917,2]
[385445467,1757855439329,-480.0,0.00021917,2]
[385445468,1757855439338,-480.0,0.00021917,2]
[385445469,1757855439347,-480.0,0.00021917,2]
[385445470,1757855439357,-480.0,0.00021917,2]
[385445471,1757855439367,-562.25,0.00021917,2]
[385445472,1757855439376,-885.08,0.00021917,2]
[385445473,1757855439385,-480.0,0.00021917,2]
[385445474,1757855439395,-591.99,0.00021917,2]
[385445475,1757855439404,-480.0,0.00021917,2]
[385445476,1757855439413,-480.0,0.00021917,2]
[385445477,1757855439423,-480.0,0.00021917,2]
[385445478,1757855439433,-480.0,0.00021917,2]
[385445479,1757855439443,-576.17907171,0.00021917,2]
[385445480,1757855439453,-480.0,0.00021917,2]
[385445481,1757855439462,-480.0,0.00021917,2]
[385445482,1757855439471,-596.7120857,0.00021917,2]
[385445483,1757855439480,-271.18121365,0.00021917,2]
[385445484,1757855439489,-1214.02,0.00021917,2]
[385445485,1757855439498,-574.06,0.00021917,2]
[385445486,1757855439507,-480.0,0.00021917,2]
[385445487,1757855439517,-480.0,0.00021917,2]
[385445488,1757855439526,-480.0,0.00021917,2]
[385445489,1757855439535,-480.0,0.00021917,2]
[385445490,1757855439545,-871.19,0.00021917,2]
[385445491,1757855439554,-480.0,0.00021917,2]
[385445492,1757855439563,-480.0,0.00021917,2]
[385445493,1757855439572,-480.0,0.00021917,2]
[385445494,1757855439581,-1185.91,0.00021917,2]
[385445495,1757855439590,-484.99243191,0.00021917,2]
[385445496,1757855439599,-480.0,0.00021917,2]
[385445497,1757855439610,-480.0,0.00021917,2]
[385445498,1757855439620,-480.0,0.00021917,2]
[385445499,1757855439630,-480.0,0.00021917,2]
[385445500,1757855439639,-480.83620406,0.00021917,2]
[385445501,1757855439648,-480.0,0.00021917,2]
[385445502,1757855439658,-578.06,0.00021917,2]
[385445503,1757855439667,-521.25,0.00021917,2]
[385445504,1757855439677,-480.0,0.00021917,2]
[385445506,1757855439687,-480.0,0.00021917,2]
[385445507,1757855439835,-480.0,0.00021917,2]
[385445508,1757855439847,-524.72,0.00021917,2]
[385445509,1757855439856,-480.0,0.00021917,2]
[385445510,1757855439865,-480.0,0.00021917,2]
[385445511,1757855439875,-1127.87,0.00021917,2]
[385445513,1757855439883,-480.0,0.00021917,2]
[385445515,1757855439893,-480.0,0.00021917,2]
[385445517,1757855439902,-480.0,0.00021917,2]
[385445519,1757855439911,-480.0,0.00021917,2]
[385445521,1757855439920,-480.0,0.00021917,2]
[385445523,1757855439930,-480.0,0.00021917,2]
[385445525,1757855439939,-486.25437665,0.00021917,2]
[385445527,1757855439949,-486.41,0.00021917,2]
[385445529,1757855439959,-480.0,0.00021917,2]
[385445531,1757855439968,-480.0,0.00021917,2]
[385445533,1757855439981,-480.0,0.00021917,2]
[385445535,1757855439991,-480.0,0.00021917,2]
[385445537,1757855440001,-483.21260983,0.00021917,2]
[385445539,1757855440012,-480.0,0.00021917,2]
[385445541,1757855440022,-481.46548439,0.00021917,2]
[385445543,1757855440033,-291.20911084,0.00021917,2]
[385445545,1757855440042,-480.0,0.00021917,2]
[385445547,1757855440052,-480.0,0.00021917,2]
[385445549,1757855440061,-737.86,0.00021917,2]
[385445551,1757855440071,-480.0,0.00021917,2]
[385445554,1757855440081,-480.0,0.00021917,2]
[385445556,1757855440090,-480.0,0.00021917,2]
[385445558,1757855440100,-371.27462888,0.00021917,2]
[385445560,1757855440109,-777.27,0.00021917,2]
[385445562,1757855440118,-480.0,0.00021917,2]
[385445563,1757855440128,-480.0,0.00021917,2]
[385445565,1757855440137,-480.0,0.00021917,2]
[385445566,1757855440147,-656.74,0.00021917,2]
[385445568,1757855440156,-480.0,0.00021917,2]
[385445569,1757855440165,-480.0,0.00021917,2]
[385445570,1757855440175,-497.98681952,0.00021917,2]
[385445571,1757855440184,-480.0,0.00021917,2]
[385445572,1757855440193,-480.0,0.00021917,2]
[385445573,1757855440203,-480.0,0.00021917,2]
[385445574,1757855440212,-480.0,0.00021917,2]
[385445575,1757855440222,-480.0,0.00021917,2]
[385445576,1757855440231,-480.0,0.00021917,2]
[385445577,1757855440241,-480.0,0.00021917,2]
[385445578,1757855440250,-480.0,0.00021917,2]
[385445579,1757855440259,-480.0,0.00021917,2]
[385445580,1757855440269,-480.0,0.00021917,2]
[385445581,1757855440278,-527.18,0.00021917,2]
[385445582,1757855440288,-480.0,0.00021917,2]
[385445583,1757855440297,-480.0,0.00021917,2]
[385445584,1757855440306,-151.0,0.00021917,2]
[385445585,1757855440315,-480.0,0.00021917,2]
[385445586,1757855440325,-654.52,0.00021917,2]
[385445587,1757855440334,-481.9583446,0.00021917,2]
[385445588,1757855440344,-480.0,0.00021917,2]
[385445589,1757855440353,-480.0,0.00021917,2]
[385445590,1757855440362,-485.87198525,0.00021917,2]
[385445591,1757855440372,-486.86621769,0.00021917,2]
[385445592,1757855440381,-480.0,0.00021917,2]
[385445593,1757855440393,-480.0,0.00021917,2]
[385445594,1757855440403,-480.0,0.00021917,2]
[385445595,1757855440412,-480.0,0.00021917,2]
[385445596,1757855440422,-610.06466493,0.00021917,2]
[385445597,1757855440431,-480.0,0.00021917,2]
[385445598,1757855440440,-480.0,0.00021917,2]
[385445599,1757855440449,-480.0,0.00021917,2]
[385445600,1757855440458,-151.0,0.00021917,2]
[385445601,1757855440467,-151.0,0.00021917,2]
[385445602,1757855440477,-151.873567,0.00021917,2]
[385445603,1757855440486,-193.67201749,0.00021917,2]
[385445604,1757855440495,-539.06,0.00021917,2]
[385445605,1757855440504,-491.89402871,0.00021917,2]
[385445606,1757855440514,-480.0,0.00021917,2]
[385445607,1757855440523,-886.65,0.00021917,2]
[385445608,1757855440533,-626.24,0.00021917,2]
[385445609,1757855440542,-808.11,0.00021917,2]
[385445610,1757855440552,-480.0,0.00021917,2]
[385445611,1757855440561,-480.0,0.00021917,2]
[385445612,1757855440571,-151.0,0.00021917,2]
[385445613,1757855440580,-151.0,0.00021917,2]
[385445614,1757855440589,-480.0,0.00021917,2]
[385445615,1757855440598,-483.54077908,0.00021917,2]
[385445616,1757855440607,-480.0,0.00021917,2]
[385445617,1757855440618,-1081.02,0.00021917,2]
[385445618,1757855440627,-480.0,0.00021917,2]
[385445619,1757855440637,-480.0,0.00021917,2]
[385445620,1757855440646,-480.0,0.00021917,2]
[385445621,1757855440656,-480.0,0.00021917,2]
[385445622,1757855440665,-151.0,0.00021917,2]
[385445623,1757855440675,-480.0,0.00021917,2]
[385445624,1757855440684,-1388.4,0.00021917,2]
[385445625,1757855440694,-485.36505383,0.00021917,2]
[385445626,1757855440703,-905.01,0.00021917,2]
[385445627,1757855440712,-480.0,0.00021917,2]
[385445628,1757855440722,-480.0,0.00021917,2]
[385445629,1757855440731,-970.87,0.00021917,2]
[385445630,1757855440740,-346.81480943,0.00021917,2]
[385445631,1757855440749,-460.80676862,0.00021917,2]
[385445632,1757855440759,-482.42891282,0.00021917,2]
[385445633,1757855440768,-480.0,0.00021917,2]
[385445634,1757855440777,-1060.11,0.00021917,2]
[385445635,1757855440786,-5366.95,0.00021917,2]
[385445636,1757855440795,-480.0,0.00021917,2]
[385445637,1757855440805,-489.15549395,0.00021917,2]
[385445638,1757855440814,-151.0,0.00021917,2]
[385445639,1757855440823,-480.0,0.00021917,2]
[385445640,1757855440832,-488.71,0.00021917,2]
[385445641,1757855440842,-480.0,0.00021917,2]
[385445642,1757855440851,-480.0,0.00021917,2]
[385445643,1757855440860,-2618.85,0.00021917,2]